Cogmind - Beta 15 @@@ ROGUE MODE // 2025.06.10 @ 23:44:28 Player: CheifClapdad Result: Destroyed by S-10 Pest with Light Assault Rifle Performance ------------- Evolutions (0) 0 Regions Visited (1) 200 Robots Destroyed (7) 35 Value Destroyed (135) 135 Prototype IDs (0) 0 Alien Tech Used (0) 0 Bonus (0) 0 TOTAL SCORE: 370 Bonus ------- None Cogmind --------- Core Integrity 0/250 Matter 300/300 Energy 100/100 System Corruption 0% Temperature Cool (0) Movement Treading (160) Location -10/Materials Parts ------- > --- POWER (1) -------- (None) > --- PROPULSION (2) --- Improved Treads > --- UTILITY (2) ------ Small Storage Unit > --- WEAPON (2) ------- (None) > --- INVENTORY (8) ---- Light Ion Engine Improved Treads Improved Treads Compact Wheel Plasma Cutter Peak State ------------ > --- POWER ------------ Light Ion Engine > --- PROPULSION ------- Improved Treads Improved Treads > --- UTILITY ---------- Small Storage Unit Seismic Detector > --- WEAPON ----------- Medium Laser Small Laser > --- INVENTORY -------- Light Ion Engine Improved Treads Improved Treads Improved Treads Wheel Compact Wheel Tractor Beam EM Pulse Gun [Rating: 10] Favorites ----------- Power Light Ion Engine Engine Light Ion Engine Propulsion Improved Treads Treads Improved Treads Wheel Compact Wheel Utility Small Storage Unit Device Seismic Detector Storage Small Storage Unit Weapon Medium Laser Energy Gun Medium Laser Build | -11 -10 ------- Run | Yrd Mat Slots Evolved . | . . Power . | . . Propulsion . | . . Utility . | . . Weapon . | . . Parts Attached 13 | 7 6 Power 1 | 1 . Engine 1 | 1 . Core . | . . Reactor . | . . Propulsion 7 | 2 5 Treads 5 | 1 4 Leg . | . . Wheel 2 | 1 1 Hover . | . . Flight . | . . Utility 2 | 2 . Device 1 | 1 . Storage 1 | 1 . Processor . | . . Hackware . | . . Protection . | . . Artifact . | . . Weapon 3 | 2 1 Energy Gun 3 | 2 1 Energy Cannon . | . . Ballistic Gun . | . . Ballistic Cannon . | . . Launcher . | . . Special Weapon . | . . Impact Weapon . | . . Slashing Weapon . | . . Piercing Weapon . | . . Special Melee Weapon . | . . Unidentified Prototypes . | . . Parts Lost 8 | . 8 Power 1 | . 1 Propulsion 3 | . 3 Utility 1 | . 1 Weapon 3 | . 3 Highest Loss Streak 7 | . 7 To Critical Strikes . | . . Average Backups 5 | 4 6 Power . | . 1 Propulsion 3 | 2 3 Utility . | . . Weapon 1 | 1 . Tool/Special . | . . Unused Backups 6 | . 6 Power 1 | . 1 Propulsion 3 | . 3 Utility 1 | . 1 Weapon . | . . Tool/Special 1 | . 1 Average Slot Usage (%) 87 | . 87 Engine 11 | . 11 Treads 17 | . 17 Wheel 9 | . 9 Device 10 | . 10 Storage 14 | . 14 Energy Gun 23 | . 23 Peak Build Rating 10 | 7 10 Average Rating 6 | 4 7 On Entrance 3 | . 7 Naked Turns . | . . Heaviest Build 12 | 12 12 Greatest Support 46 | 20 46 Greatest Overweight (x) 3 | . 3 Average Overweight (x) . | . . Largest Inventory Capacity 8 | 8 8 Average Capacity 7 | 7 8 Most Carried 8 | 7 8 Average Carried 6 | 4 6 Final Capacity 8 | 8 8 Final Carried 6 | 6 5 Class Distribution -------------------- 100% | Mutant Dominant Class ---------------- Mutant | -10/Materials Resources | -11 -10 ----------- Run | Yrd Mat Matter Collected 305 | 254 51 Remotely . | . . Salvage Created 229 | 77 152 Parts 9 | 4 5 Haulers Intercepted . | . . Recyclers Shooed 1 | . 1 Parts Field Recycled . | . . Retrieved Matter . | . . Parts Self-Destructed . | . . Prevented . | . . Kills | -11 -10 ------- Run | Yrd Mat Combat Hostiles Destroyed 5 | . 5 Guns 4 | . 4 AOE 1 | . 1 Classes Destroyed 4 | 2 2 Tunneler 1 | 1 . Recycler 1 | 1 . Swarmer 2 | . 2 Grunt 3 | . 3 Best Kill Streak 4 | 2 4 Combat Bots Only 4 | . 4 Max Kills in Single Turn 1 | 1 1 Gunslinging . | . . Exploded 1 | . 1 Melee . | . . Uniques/NPCs Destroyed . | . . Combat | -11 -10 -------- Run | Yrd Mat Hostile Shots Fired 161 | . 161 Missed 37 | . 37 Hits 124 | . 124 Projectile 124 | . 124 Damage Taken 1087 | . 1087 Core 255 | . 255 Absorbed by Shields . | . . Core Remaining (%) 100 | 100 . Volleys Fired 24 | 4 20 Largest 2 | 2 2 Hottest 90 | 90 90 Shots Fired 43 | 8 35 Gun 43 | 8 35 Cannon . | . . Launcher . | . . Special . | . . Kinetic . | . . Thermal 40 | 8 32 Explosive . | . . Electromagnetic 3 | . 3 Robot Hit Streak 7 | 4 7 Robot Miss Streak 9 | 1 9 Penetration Max . | . . Secondary Targets . | . . Shots Hit Robots 23 | 5 18 Core Hits 14 | 3 11 Critical Kills . | . . Critical Parts Destroyed . | . . Critical Strikes 1 | . 1 Burn 1 | . 1 Melee Attacks . | . . Impact . | . . Slashing . | . . Piercing . | . . Sneak Attacks . | . . Combat Hostiles . | . . Follow-up Attacks . | . . Damage Inflicted 454 | 74 380 Guns 351 | 74 277 Cannons . | . . Explosions 91 | . 91 Melee . | . . Ramming 12 | . 12 Kinetic . | . . Thermal 405 | 74 331 Explosive . | . . Electromagnetic 37 | . 37 Impact . | . . Slashing . | . . Piercing . | . . Highest Corruption . | . . Average Corruption . | . . Corruption Purged . | . . Corruption Blocked . | . . Overload Shots . | . . Overflow Damage . | . . Projectiles . | . . Explosions . | . . Melee . | . . Knockbacks . | . . Impact . | . . Kinetic . | . . Secondary . | . . Self-Inflicted Damage 9 | . 9 Shots 1 | . 1 Rammed 11 | . 11 Targets Rammed 11 | . 11 Kicked . | . . Crushed . | . . Highest Temperature 376 | 90 376 Average Temperature 175 | 40 201 Received Heat Transfer 222 | . 222 Effects 1 | . 1 Energy Bleed 1 | . 1 Siege Activations . | . . Martial Activations . | . . Shielding Activations . | . . Robots Disrupted . | . . Combat Hostiles . | . . Robots Corrupted . | . . Combat Hostiles . | . . Parts Fried . | . . Impact Corruptions . | . . Robots Melted . | . . Combat Hostiles . | . . Parts Melted 2 | 1 1 Heat Transferred 1128 | 186 942 Parts Sabotaged . | . . Parts Stolen . | . . Parts Stripped . | . . Power Chain Reactions 1 | . 1 Alert | -11 -10 ------- Run | Yrd Mat Maximum Alert Level . | . . Low Security (%) 100 | 100 100 Level 1 . | . . Level 2 . | . . Level 3 . | . . Level 4 . | . . Level 5 . | . . High Security . | . . Max Security . | . . Peak Influence 60 | 5 60 Initial . | . . Average 5 | . 8 Influence Increases 130 | 10 120 Destroy 0b10 Robot/C 100 | . 100 Destroy 0b10 Robot/NC 10 | 10 . Destroy Leader 20 | . 20 Influence Decreases 128 | 10 118 Time Decay 68 | 10 58 Lost Part 60 | . 60 Squads Dispatched 1 | . 1 Investigation 1 | . 1 Extermination . | . . Reinforcement . | . . Assault . | . . Garrison . | . . Intercept . | . . Searches Triggered . | . . Construction Impeded . | . . Haulers Reinforced . | . . Active Scanning Responses . | . . Cargo Convoy Interrupts . | . . Stealth | -11 -10 --------- Run | Yrd Mat Distress Signals . | . . Communications Jammed . | . . Distress Signals . | . . Times Spotted 9 | . 9 Peak Tracking Total 6 | . 6 Tactical Retreats . | . . Traps | -11 -10 ------- Run | Yrd Mat Traps Triggered 1 | . 1 Indirectly . | . . Trap Hack Attempts . | . . Triggered . | . . Disarmed . | . . Reprogrammed . | . . Reused . | . . Traps Extracted . | . . Installed . | . . Triggered . | . . Machines | -11 -10 ---------- Run | Yrd Mat Machines Disabled . | . . Max in Single Turn . | . . Machines Repaired . | . . Machines Dismantled . | . . Machines Sabotaged . | . . Overloaded Fab Kills . | . . Hacking | -11 -10 --------- Run | Yrd Mat Machines Accessed 1 | . 1 Terminals 1 | . 1 Fabricators . | . . Repair Stations . | . . Recycling Units . | . . Scanalyzers . | . . Garrison Access . | . . Total Hacks 1 | . 1 Successful 1 | . 1 Failed . | . . Catastrophic . | . . Database Lockouts . | . . Manual 1 | . 1 Terminals 1 | . 1 Fabricators . | . . Repair Stations . | . . Recycling Units . | . . Scanalyzers . | . . Garrison Access . | . . Terminal Hacks . | . . Fabricator Hacks . | . . Repair Station Hacks . | . . Recycling Unit Hacks . | . . Scanalyzer . | . . Garrison Access Hacks . | . . Unauthorized Hacks 1 | . 1 Terminals 1 | . 1 Botnet 1 | . 1 Fabricators . | . . Repair Stations . | . . Recycling Units . | . . Scanalyzers . | . . Garrison Access . | . . Data Cores Recovered . | . . Used . | . . Hacking Detections . | . . Full Trace Events . | . . Feedback Events . | . . Feedback Blocked . | . . Robot Schematics Acquired . | . . Robots Built . | . . Authchips . | . . Time . | . . Total Robot Build Rating . | . . Part Schematics Acquired . | . . Parts Built . | . . Authchips . | . . Time . | . . Total Part Build Rating . | . . Parts Repaired . | . . Time . | . . Parts Recycled . | . . Recycled Matter . | . . Retrieved Matter . | . . Retrieved Components . | . . Parts Scanalyzed . | . . Part Schematics Acquired . | . . Parts Damaged . | . . Bothacking | -11 -10 ------------ Run | Yrd Mat Used RIF Installer . | . . Robots Hacked . | . . Non-combat . | . . Combat . | . . Robot Hacks Applied . | . . Relay Couplers Released . | . . Fabnet Peak Effective % . | . . Robots Rewired . | . . Allies Hacked . | . . Hacks Repelled . | . . Allies | -11 -10 -------- Run | Yrd Mat Total Allies . | . . Largest Group . | . . Highest-Rated Group . | . . Highest-Rated Ally . | . . Total Orders . | . . Ally Attacks . | . . Total Damage . | . . Kills . | . . Allies Corrupted . | . . Allies Melted . | . . Intel | -11 -10 ------- Run | Yrd Mat Active Infowar (turns) 375 | 83 292 Seismic 375 | 83 292 Robot Analysis Total . | . . Derelict Logs Recovered . | . . Drone Launches . | . . Drone Recoveries . | . . Exploration | -11 -10 ------------- Run | Yrd Mat Turns Passed 629 | 224 405 Spaces Moved 413 | 162 251 Core 42 | 41 1 Treads 208 | 89 119 Legs . | . . Wheels 163 | 32 131 Hover . | . . Flight . | . . Fastest Speed 50 | 50 95 Average Speed 123 | 120 126 Slowest Speed 200 | 160 200 Overloaded Moves . | . . Propulsion Burnouts . | . . Robots Hopped . | . . Potential Cave-ins . | . . Cave-ins Triggered . | . . Exploration Rate (%) 17 | 6 29 Regions Visited 1 Branch Regions . Pre-discovered Areas . | . . Known Exits Taken . | . . Unknown Exits Taken 1 | 1 . Scrap Searched . | . . Spaces Dug . | . . Terrain Destroyed . | . . Melee . | . . Projectile . | . . AOE . | . . Terrain Rammed . | . . Walls Destroyed . | . . Machines Disabled . | . . Actions | -11 -10 --------- Run | Yrd Mat Total 485 | 183 302 Wait 3 | . 3 Move 412 | 161 251 Hop . | . . Pick Up 15 | 10 5 Fast Attach 5 | 4 1 Attach 6 | 3 3 Detach . | . . Swap 3 | . 3 Drop 6 | 1 5 Fire 24 | 4 20 Melee . | . . Ram . | . . Kick . | . . Crush 11 | . 11 Escape Stasis . | . . Rewire . | . . Trap . | . . Miscellaneous . | . . Route ------- -11/Scrapyard -10/Materials (discovered 2 exits: [*Min] / [*Sub]) History --------- Turn | Location | Event 6 | -11/Scrapyard | Discovered new exit (range 15) 225 | -11/Scrapyard | Entered Materials 302 | -10/Materials | Build established: Mutant 400 | -10/Materials | Discovered new exit (range 5) 424 | -10/Materials | Discovered new exit (range 15) 537 | -10/Materials | Core integrity fell below 50% 584 | -10/Materials | Core integrity fell below 20% 606 | -10/Materials | Lost 7 parts (1p2n1u3w) 630 | -10/Materials | Destroyed by S-10 Pest with Light Assault Rifle Last Messages --------------- 00569_ G-34 Mercenary destroyed. 00571_ Sml. Laser destroyed. 00575_ Med. Laser destroyed. 00591_ R-06 Scavenger collects Aluminum Leg. 00598_ Nuclear Reactor explodes. 00598_ Recycling Unit disabled. 00602_ U-05 Engineer builds a Wall. 00606_ Slammed into S-10 Pest. 00606_ U-05 Engineer builds a Wall. 00608_ U-05 Engineer lays Concrete. 00611_ U-05 Engineer builds a Wall. 00613_ Slammed into S-10 Pest. 00624_ Imp. Treads destroyed. 00626_ Slammed into S-10 Pest. 00626_ U-05 Engineer lays Concrete. 00627_ Slammed into S-10 Pest. 00628_ K-01 Serf collects debris. 00628_ U-05 Engineer lays Concrete. 00629_ Slammed into S-10 Pest. 00629_ U-05 Engineer lays Concrete. Map ----- +----------------------------------------------------+ | ?????????????????????????????????????????????????? | | ?????????????????????????????????????????????????? | | ?????????????????????????????????????????????????? | | ?????????????????????????????????????????????????? | | ????????????????? ?????????????????????????????? | | ????????????????? #????????????????????????????? | | ????????????????? #????????????????????????????? | | ????????????????? #????????????????????????????? | | ????????????????? #????????????????????????????? | | ????????###+##??# #????????????????????????????? | | ????????? #??# ###??????????? ??????????? | | ?????????# #??# # ??????????? < ??????????? | | ?????????#^^^#??# # "??????????? ??????????? | | ?????##### #??# # "??????????? ??????????? | | ?????#== #??# # ""? #??????? "??????????? | | ?????#== #??# # """ #???????# #??????????? | | ?????#|| #### # #???????# #??????????? | | ?????#| % % # """ #???????+ /??????????? | | ?????#!!% % % = # """ #???????# #??????????? | | ?????#!! =[ %= # """ #???????# #??????????? | | ?????##### # """ #???????# #??????????? | | ?????????# # %% #???????# #??????????? | | ?????????# u # %% #???????# #??????????? | | ?????????# ###+########### #??????????? | | ?????????# t %%t #??????????? | | ?????????# k @ r #??????????? | | ?????????# u s ######### | | ?????????# Y ################# | | ?????????# ##"""#???????????????# #? | | ?????????# ?#####???????????????# #? | | ?????????# ?????????????????????# ########+### | | ?????????# ?????????????????????# #??# | | ?????????# ?????????????????????# #### | | ??????????? ???????##########????# + | | ????????????????????# #????# #### """ | | ????????????????????# #????# #??# """"" | | ????????????????????# ###### #??# """"" | | ????????????????????# # #### """"" | | ????????????????????# + + """ | | ????????????????????# #^ #### | | ????????????????????# # ##### #??######### | | ????????????????????# # #???# ###### ## | | ????????????????????# # #???# + ## | | ????????????????????########## ############# ## | | ???????????????????????????# = #????????# ## | | ???????????????????????????# = =!!#????????# <# | | ???????????????????????????#= ==!!#????????? ## | | ???????????????????????????########?????????##### | | ????????????????????????????????????????????????## | | | +----------------------------------------------------+ Best States ------------- Heat Dissipation 25 Energy Generation 10 Energy Capacity 125 Matter Stores 300 Matter Capacity 300 Sight Range 16 Terrain Scan Density 10 Evasion (%) 50 Recoil Reduction 2 Item Schematics ----------------- None Robot Schematics ------------------ None Fabricated ------------ Nothing Repaired ---------- Nothing Alien Tech Used ----------------- None Achievements -------------- None Challenges ------------ None Game ------ Seed SlugWaveChainsword Manual? 0 Play Time 00:06:57 Cumulative 70.2 hours Start 2025.06.10 @ 23:40:16 End 2025.06.10 @ 23:44:28 Sessions 1 Manual Loads 0 Difficulty Rogue Special Mode None Game No. 92 Rogue 92 Adventurer 0 Explorer 0 Win Type - Total 1 Types 1/0/0/0/0/0/0/0/0/0 Lore% 32 Gallery% 44 Achievement% 39 Wizard Run 0 Options --------- Layout 1 ASCII 0 Keyboard 0 Movement Arrows Keybinds 0 Fullscreen 1 Font 24/Smallcaps Map View 50x35 Zoom Use 0% Tactical HUD 1 Map Filters NONE Filters NONE Steam X RUN: ee0f70d9-2cab-4dc4-86a7-1515879758c9